fUSD/lending_fUSD_20240614
["ID","MTS","AMOUNT","RATE_DAILY","PERIOD"]
[329476675,1718383885868,-10404.25,0.00024657,3]
[329476676,1718383885932,-4458.40695899,0.00024657,3]
[329476677,1718383885965,-253.25495831,0.00024657,3]
[329476678,1718383886041,-1221.04577274,0.00024657,3]
[329476679,1718383886946,-977.52,0.00024109,3]
[329476680,1718383886963,-1.60815,0.00024109,3]
[329476681,1718383886978,-498.39185,0.00024109,3]
[329476682,1718383887008,-977.52,0.00024383,3]
[329476683,1718383887022,-170.65,0.00024383,3]
[329476684,1718383887033,-7326.30858737,0.00024657,3]
[329476685,1718383887101,-191.73372259,0.00024657,3]
[329476686,1718383887155,-474.01260943,0.00024657,3]
[329476687,1718383887188,-500.0,0.00024657,3]
[329476688,1718383887220,-575.00021635,0.00024657,3]
[329476689,1718383890160,-1220.43978365,0.00024657,3]
[329476690,1718383890198,-500.0,0.00024657,3]
[329476691,1718383890213,-500.0,0.00024657,3]
[329476692,1718383890271,-1.38892661,0.00024657,3]
[329476693,1718383890308,-933.44107339,0.00024657,3]
[329476694,1718383890330,-459.19667885,0.00024657,3]
[329476695,1718383890356,-40.80332115,0.00024657,3]
[329476696,1718383890380,-500.0,0.00024657,3]
[329476697,1718383890421,-3132.63,0.00024657,3]
[329476698,1718383890469,-500.0,0.00024657,3]
[329476699,1718383890502,-346.99638612,0.00024657,3]
[329476700,1718383890565,-500.0,0.00024657,3]
[329476701,1718383890592,-1962.98,0.00024657,3]
[329476702,1718383890605,-500.0,0.00024657,3]
[329476703,1718383890645,-5085.39,0.00024657,3]
[329476704,1718383890671,-4710.15,0.00024657,3]
[329476705,1718383890700,-964.51,0.00024657,3]
[329476706,1718383890710,-500.0,0.00024657,3]
[329476707,1718383890723,-3756.59,0.00024657,3]
[329476708,1718383890744,-546.4,0.00024657,3]
[329476709,1718383890755,-500.0,0.00024657,3]
[329476710,1718383890765,-3343.43,0.00024657,3]
[329476711,1718383890776,-500.0,0.00024657,3]
[329476712,1718383890793,-787.31,0.00024657,3]
[329476713,1718383890837,-65.652974,0.00024657,3]
[329476714,1718383891065,-583.06042742,0.00024657,3]
[329476715,1718383891080,-114.38457258,0.00024657,3]
[329476716,1718383891131,-385.61542742,0.00024657,3]
[329476717,1718383891145,-500.0,0.00024657,3]
[329476718,1718383891164,-1407.0,0.00024657,3]
[329476719,1718383891240,-1167.98,0.00024657,3]
[329476720,1718383891288,-611.45,0.00024657,3]
[329476721,1718383891318,-175.20457258,0.00024657,3]
[329476722,1718383891372,-324.79542742,0.00024657,3]
[329476723,1718383891386,-329.36027258,0.00024657,3]
[329476724,1718383891402,-670.7,0.00024657,3]
[329476725,1718383891415,-121.57972742,0.00024657,3]
[329476726,1718383891448,-500.0,0.00024657,3]
[329476727,1718383891466,-255.97509058,0.00024657,3]
[329476728,1718383891504,-244.02490942,0.00024657,3]
[329476729,1718383891534,-153.60607445,0.00024657,3]
[329476730,1718383891546,-271.26559914,0.00024657,3]
[329476731,1718383891574,-1504.01832641,0.00024657,3]
[329476732,1718383891592,-202.98167359,0.00024657,3]
[329476733,1718383891640,-297.01832641,0.00024657,3]
[329476734,1718383891661,-195.41060302,0.00024657,3]
[329476735,1718383891700,-569.49,0.00024657,3]
[329476736,1718383891711,-1435.78,0.00024657,3]
[329476737,1718383891721,-1387.98,0.00024657,3]
[329476738,1718383891737,-500.0,0.00024657,3]
[329476739,1718383891748,-977.52,0.00024657,3]
[329476740,1718383891758,-417.89720625,0.00024694,2]
[329476741,1718383891776,-739.90386433,0.000247,9]
[329476742,1718383891796,-1160.09613567,0.000247,9]
[329476743,1718383891806,-2480.58700374,0.00024794,2]
[329476744,1718383891837,-500.0,0.00024794,2]
[329476745,1718383891862,-500.0,0.00024794,2]
[329476746,1718383891886,-13224.96577849,0.00024798,2]
[329476747,1718383891920,-5156.20886332,0.00024798,2]
[329476748,1718383891944,-2380.98532814,0.00024798,2]
[329476749,1718383891973,-20762.15996988,0.00024798,2]
[329476750,1718383892040,-3721.03777329,0.00024799,2]
[329476751,1718383892057,-2779.2,0.00024799,2]
[329476752,1718383892071,-493.81114749,0.00024799,2]
[329476753,1718383892084,-592.60798969,0.00024799,2]
[329476754,1718383892136,-1704.52086282,0.00024799,2]
[329476755,1718383892153,-2247.44095932,0.00024799,2]
[329476756,1718383892191,-526.80956224,0.00024799,2]
[329476757,1718383892220,-1525.32,0.00024799,2]
[329476758,1718383892298,-397.34954669,0.00024799,2]
[329476759,1718383892317,-1381.93320104,0.000248,9]
[329476760,1718383892378,-539.06283141,0.000248,9]
[329476761,1718383892396,-579.00396755,0.000248,9]
[329476762,1718383892413,-198.75294983,0.0002488,2]
[329476763,1718383892432,-406.8130835,0.00024882,2]
[329476764,1718383892446,-753.67,0.00024889,3]
[329476765,1718383892473,-124060.724757,0.0002489,3]
[329476766,1718383892511,-31015.1811891,0.0002489,3]
[329476767,1718383892541,-753.67,0.00024899,3]
[329476768,1718383892590,-417.89720625,0.00024899,2]
[329476769,1718383892602,-214257.7790694,0.000249,2]
[329476770,1718383892663,-262.5266814,0.000249,2]
[329476771,1718383892694,-528.5269001,0.000249,2]
[329476772,1718383892707,-325.49043683,0.000249,2]
[329476773,1718383892722,-1677.4,0.000249,2]
[329476774,1718383892735,-4435.3332493,0.000249,2]
[329476775,1718383892754,-1631.275,0.000249,2]
[329476776,1718383895537,300.0,0.00019725,2]
[329476777,1718383898449,3593.08226722,0.00019725,2]
[329476778,1718383921715,300.0,0.00019725,2]
[329476779,1718383959488,78070.65958337,0.00019725,2]
[329476780,1718384038266,1000.0,0.00017533,2]
[329476781,1718384268551,1047.96675762,0.00017533,2]
[329476782,1718384270317,1000.0,0.00017533,2]
[329476783,1718384303780,1760.27,0.00017259,2]
[329476784,1718384304665,35013.31820311,0.00017533,2]
[329476785,1718384316499,26225.87226742,0.00017533,2]
[329476786,1718384369444,500.0,0.00017533,2]
[329476787,1718384370171,500.0,0.00017533,2]
[329476788,1718384370327,500.0,0.00017533,2]
[329476789,1718384370861,500.0,0.00017533,2]
[329476790,1718384371281,500.0,0.00017533,2]
[329476791,1718384371656,500.0,0.00017533,2]
[329476792,1718384372191,500.0,0.00017533,2]
[329476793,1718384376308,500.0,0.00017533,2]
[329476794,1718384376992,500.0,0.00017533,2]
[329476795,1718384377430,500.0,0.00017533,2]
[329476796,1718384377905,500.0,0.00017533,2]
[329476797,1718384378278,500.0,0.00017533,2]
[329476798,1718384378453,500.0,0.00017533,2]
[329476799,1718384379023,976.0,0.00017533,2]
[329476800,1718384461816,1000.0,0.00017533,2]
[329476802,1718384581128,-1000.0,0.00019451,2]
[329476803,1718384581378,-2342.436055,0.00019526,2]
[329476804,1718384581682,-1250.0,0.00019625,2]
[329476805,1718384581922,-1250.0,0.00019625,2]
[329476806,1718384581964,-370.27272899,0.00019724,2]
[329476807,1718384582004,-27787.29121601,0.00019725,2]
[329476808,1718384758828,-358.85760761,0.00019724,2]
[329476809,1718384758879,-300.0,0.00019724,2]
[329476810,1718384758955,-58795.89441258,0.00019725,2]
[329476811,1718384762469,300.0,0.00019725,2]
[329476812,1718384822313,300.0,0.00019725,2]
[329476815,1718385007959,15626.7244033,0.00017259,2]
[329476822,1718385035317,-495.94,0.0002044,2]
[329476823,1718385035352,-706.0,0.00021,5]
[329476824,1718385035369,-381.58485082,0.00021192,2]
[329476825,1718385035402,-118.40514918,0.00021192,2]
[329476826,1718385035435,-192.34,0.00022093,2]
[329476827,1718385035447,-4397.17,0.00022116,2]
[329476828,1718385035461,-250.0,0.00022124,2]
[329476829,1718385035471,-554.67,0.00022165,2]
[329476830,1718385035483,-9004.13551303,0.00022167,2]
[329476831,1718385035512,-2007.59931685,0.00022167,2]
[329476833,1718385037000,-562.15993343,0.00022167,2]
[329476834,1718385037016,-283.87982098,0.00022167,2]
[329476836,1718385037029,-981.07515574,0.00022167,2]
[329476838,1718385037049,-756.27288357,0.00022167,2]
[329476843,1718385037115,-642.26476987,0.00022167,2]
[329476848,1718385037182,-4684.97260653,0.00022167,2]
[329476850,1718385037194,-250.0,0.00022168,2]
[329476852,1718385037218,-289.24,0.00022197,2]
[329476855,1718385037245,-693.23,0.00022202,2]
[329476856,1718385037277,-250.0,0.00022221,2]
[329476858,1718385037296,-300.33,0.00022227,2]
[329476860,1718385037310,-150.0,0.00022256,2]
[329476862,1718385037339,-999.99,0.00022602,2]
[329476863,1718385037351,-1728.92,0.00022602,2]
[329476866,1718385037404,-500.0,0.00022602,2]
[329476867,1718385037416,-500.0,0.00022602,2]
[329476869,1718385037433,-495.94,0.00022703,2]
[329476870,1718385037443,-170.0,0.00023,2]
[329476871,1718385037454,-400.0,0.00023307,2]
[329476872,1718385037478,-237.68179193,0.00023698,2]
[329476873,1718385037496,-593.4980701,0.00023698,2]
[329476874,1718385037513,-600.0,0.000237,8]
[329476875,1718385037536,-1200.0,0.000238,8]
[329476876,1718385037549,-1900.0,0.000239,8]
[329476877,1718385037573,-1208.7985,0.00023909,2]
[329476878,1718385037596,-12000.0,0.00024,3]
[329476879,1718385037609,-549.89601157,0.00024,2]
[329476881,1718385037621,-328.09084184,0.00024007,2]
[329476882,1718385037636,-208.94860313,0.00024009,2]
[329476884,1718385037652,-981.77290641,0.00024009,2]
[329476886,1718385037663,-1509.2679123,0.00024009,2]
[329476946,1718385045808,-539.47382204,0.00024009,2]
[329476947,1718385045823,-4464.38549259,0.00024009,2]
[329476948,1718385045861,-776.66611184,0.00024009,2]
[329476949,1718385046135,-300.08603421,0.00024009,2]
[329476950,1718385046154,-405.5664405,0.00024009,2]
[329476951,1718385046177,-17365.33401791,0.00024009,2]
[329476952,1718385046204,-3924.53627189,0.00024009,2]
[329476977,1718385047874,-1092.99755737,0.00024009,2]
[329476980,1718385047887,-1370.91809665,0.00024009,2]
[329476989,1718385048284,-6218.39108876,0.00024009,2]
[329476990,1718385048299,-764.825,0.00024009,2]
[329476991,1718385048318,-719.07075033,0.00024009,2]
[329476992,1718385048360,-4303.63783665,0.00024009,2]
[329476993,1718385048373,-1405.2,0.00024009,2]
[329476994,1718385048389,-1016.1,0.00024009,2]
[329476995,1718385048402,-7707.39140595,0.00024009,2]
[329477003,1718385050592,-18510.19358305,0.00024009,2]
[329477005,1718385050603,-1996.3195,0.00024009,2]
[329477007,1718385050615,-39441.77130388,0.00024089,2]
[329477009,1718385050669,-17739.44804755,0.00024089,2]
[329477010,1718385050688,-2828.39406087,0.00024089,2]
[329477011,1718385050704,-66629.9949392,0.00024099,2]
[329477012,1718385050725,-685.50165271,0.00024099,2]
[329477013,1718385050745,-2793.5552504,0.00024099,2]
[329477014,1718385050770,-3684.91928839,0.00024099,2]
[329477015,1718385050804,-712.25,0.00024099,2]
[329477016,1718385050826,-6154.67876753,0.00024099,2]
[329477017,1718385050844,-2212.4466,0.00024099,2]
[329477018,1718385050871,-26821.11545556,0.00024099,2]
[329477019,1718385050903,-4912.95134531,0.00024099,2]
[329477020,1718385050919,-17931.91225216,0.00024099,2]
[329477022,1718385050948,-283.98589082,0.00024099,2]
[329477023,1718385050974,-3358.09728546,0.00024099,2]
[329477024,1718385050994,-6556.54861683,0.00024099,2]
[329477025,1718385051019,-3261.8106,0.00024099,2]
[329477026,1718385051046,-3927.3199418,0.00024099,2]
[329477031,1718385051303,-354.01000002,0.00024099,2]
[329477032,1718385051321,-24458.8166724,0.00024099,2]
[329477033,1718385051337,-1178.32502374,0.00024099,2]
[329477034,1718385051362,-1642.6789177,0.00024099,2]
[329477035,1718385051376,-6517.10792,0.00024099,2]
[329477036,1718385051396,-673.38953007,0.00024099,2]
[329477037,1718385051413,-383.65,0.00024099,2]
[329477038,1718385051427,-261.9,0.00024099,2]
[329477039,1718385051443,-849.33,0.00024099,2]
[329477040,1718385051457,-325.82,0.00024099,2]
[329477041,1718385051470,-21684.3732859,0.00024099,2]
[329477042,1718385051484,-17848.54770864,0.00024099,2]
[329477043,1718385051638,-464.58898707,0.00024099,2]
[329477044,1718385051652,-310.12172434,0.00024099,2]
[329477045,1718385051670,-9999.99972179,0.00024099,2]
[329477046,1718385051683,-2913.57602836,0.00024099,2]
[329477047,1718385051699,-813.32934137,0.00024099,2]
[329477048,1718385051713,-29436.60760743,0.00024099,2]
[329477049,1718385051727,-195.0188336,0.00024099,2]
[329477050,1718385051747,-151.67,0.00024099,2]
[329477051,1718385051759,-889.2382371,0.00024107,2]
[329477052,1718385051772,-688.55899011,0.00024108,2]
[329477053,1718385051822,-500.0,0.00024109,3]
[329477054,1718385051840,-500.0,0.00024109,3]
[329477055,1718385051852,-500.0,0.00024109,3]
[329477056,1718385051869,-500.0,0.00024109,3]
[329477057,1718385051894,-500.0,0.00024109,3]
[329477059,1718385051911,-500.0,0.00024109,2]
[329477061,1718385051930,-500.0,0.00024109,3]
[329477063,1718385051945,-541.98,0.00024109,3]
[329477065,1718385051958,-500.0,0.00024109,3]
[329477067,1718385051971,-405.18,0.00024109,3]
[329477069,1718385051983,-500.0,0.00024109,3]
[329477071,1718385051996,-500.0,0.00024109,3]
[329477073,1718385052012,-500.0,0.00024109,3]
[329477074,1718385052069,-509.02050737,0.00024109,3]
[329477076,1718385052081,-500.0,0.00024109,3]
[329477078,1718385052092,-1156.03,0.00024109,3]
[329477080,1718385052108,-500.0,0.00024109,3]
[329477083,1718385052139,-500.0,0.00024109,3]
[329477085,1718385052155,-500.0,0.00024109,3]
[329477086,1718385052188,-500.0,0.00024109,3]
[329477089,1718385052216,-500.0,0.00024109,2]
[329477090,1718385052242,-500.0,0.00024109,3]
[329477092,1718385052266,-500.0,0.00024109,3]
[329477094,1718385052288,-500.0,0.00024109,3]
[329477096,1718385052304,-500.0,0.00024109,3]
[329477099,1718385052325,-619.12344451,0.00024109,3]
[329477101,1718385052340,-355.02912688,0.00024109,3]
[329477102,1718385052364,-237.41965657,0.00024109,3]
[329477104,1718385052378,-500.0,0.00024109,3]
[329477107,1718385052407,-500.0,0.00024109,3]
[329477109,1718385052419,-500.0,0.00024109,3]
[329477111,1718385052430,-500.0,0.00024109,3]
[329477113,1718385052444,-679.37,0.00024109,3]
[329477115,1718385052459,-555.85,0.00024109,3]
[329477116,1718385052474,-500.0,0.00024109,3]
[329477119,1718385052496,-500.0,0.00024109,3]
[329477122,1718385052516,-500.0,0.00024109,2]
[329477123,1718385052527,-1666.65,0.00024109,3]
[329477126,1718385052539,-457.59884911,0.00024109,3]
[329477128,1718385052576,-500.0,0.00024109,3]
[329477130,1718385052591,-500.0,0.00024109,3]
[329477132,1718385052612,-597.68,0.00024109,3]
[329477134,1718385052625,-220.41393298,0.00024109,3]
[329477136,1718385052637,-500.0,0.00024109,3]
[329477138,1718385052672,-500.0,0.00024109,3]
[329477140,1718385052684,-963.26,0.00024109,3]
[329477141,1718385052705,-500.0,0.00024109,3]
[329477142,1718385052725,-562.99,0.00024109,3]
[329477144,1718385052742,-541.87333643,0.00024109,3]
[329477147,1718385052757,-500.0,0.00024109,3]
[329477149,1718385052769,-500.0,0.00024109,3]
[329477150,1718385052792,-500.0,0.00024109,3]
[329477152,1718385052804,-500.0,0.00024109,3]
[329477154,1718385052822,-1026.35,0.00024109,3]
[329477155,1718385052834,-500.0,0.00024109,3]
[329477157,1718385052846,-500.0,0.00024109,3]
[329477159,1718385052868,-500.0,0.00024109,3]
[329477160,1718385052880,-500.0,0.00024109,3]
[329477163,1718385052912,-500.0,0.00024109,3]
[329477165,1718385052931,-500.0,0.00024109,3]
[329477168,1718385052945,-500.0,0.00024109,3]
[329477170,1718385052963,-500.0,0.00024109,3]
[329477172,1718385052980,-500.0,0.00024109,3]
[329477173,1718385052990,-500.0,0.00024109,3]
[329477175,1718385053001,-367.81866819,0.00024109,3]
[329477176,1718385053013,-500.0,0.00024109,3]
[329477179,1718385053033,-500.0,0.00024109,3]
[329477182,1718385053070,-500.0,0.00024109,3]
[329477184,1718385053093,-500.0,0.00024109,3]
[329477186,1718385053120,-735.03,0.00024109,3]
[329477188,1718385053130,-500.0,0.00024109,3]
[329477190,1718385053141,-500.0,0.00024109,3]
[329477192,1718385053160,-500.0,0.00024109,3]
[329477193,1718385053171,-500.0,0.00024109,3]
[329477195,1718385053186,-479.18956553,0.00024109,3]
[329477197,1718385053207,-500.0,0.00024109,3]
[329477199,1718385053225,-542.83239305,0.00024109,3]
[329477201,1718385053251,-500.0,0.00024109,3]
[329477204,1718385053273,-500.0,0.00024109,3]
[329477207,1718385053305,-500.0,0.00024109,3]
[329477209,1718385053319,-500.0,0.00024109,3]
[329477210,1718385053346,-500.0,0.00024109,3]
[329477212,1718385053366,-500.0,0.00024109,3]
[329477213,1718385053382,-500.0,0.00024109,3]
[329477215,1718385053418,-500.0,0.00024109,3]
[329477217,1718385053429,-500.0,0.00024109,3]
[329477220,1718385053442,-500.0,0.00024109,3]
[329477222,1718385053455,-500.0,0.00024109,3]
[329477226,1718385053496,-182.73646661,0.00024109,3]
[329477228,1718385053515,-500.0,0.00024109,3]
[329477230,1718385053528,-561.30387377,0.00024109,3]
[329477231,1718385053547,-500.0,0.00024109,3]
[329477232,1718385053565,-500.0,0.00024109,3]
[329477234,1718385053585,-500.0,0.00024109,3]
[329477235,1718385053596,-500.0,0.00024109,3]
[329477237,1718385053610,-500.0,0.00024109,3]
[329477238,1718385053636,-500.0,0.00024109,3]
[329477241,1718385053648,-500.0,0.00024109,3]
[329477243,1718385053660,-500.0,0.00024109,3]
[329477245,1718385053671,-368.18697788,0.00024109,3]
[329477246,1718385053685,-500.0,0.00024109,3]
[329477247,1718385053700,-500.0,0.00024109,3]
[329477248,1718385053713,-500.0,0.00024109,3]
[329477249,1718385053734,-500.0,0.00024109,3]
[329477250,1718385053747,-500.0,0.00024109,3]
[329477251,1718385053759,-500.0,0.00024109,3]
[329477252,1718385053770,-500.0,0.00024109,3]
[329477253,1718385053794,-500.0,0.00024109,3]
[329477254,1718385053805,-500.0,0.00024109,3]
[329477255,1718385053818,-500.0,0.00024109,3]
[329477256,1718385053832,-168.6593725,0.00024109,3]
[329477257,1718385053844,-500.0,0.00024109,3]
[329477258,1718385053859,-500.0,0.00024109,3]
[329477259,1718385053875,-500.0,0.00024109,3]
[329477260,1718385053887,-500.0,0.00024109,3]
[329477261,1718385053899,-500.0,0.00024109,3]
[329477262,1718385053911,-500.0,0.00024109,3]
[329477263,1718385053924,-500.0,0.00024109,3]
[329477264,1718385053941,-500.0,0.00024109,3]
[329477265,1718385053954,-500.0,0.00024109,3]
[329477266,1718385053969,-500.0,0.00024109,3]
[329477267,1718385053982,-500.0,0.00024109,3]
[329477268,1718385053993,-500.0,0.00024109,3]
[329477269,1718385054006,-500.0,0.00024109,3]
[329477270,1718385054040,-556.27095736,0.00024109,3]
[329477271,1718385054080,-500.0,0.00024109,3]
[329477272,1718385054114,-500.0,0.00024109,3]
[329477273,1718385054128,-500.0,0.00024109,3]
[329477274,1718385054139,-500.0,0.00024109,3]
[329477275,1718385054151,-500.0,0.00024109,3]
[329477276,1718385054162,-500.0,0.00024109,3]
[329477277,1718385054177,-500.0,0.00024109,3]
[329477278,1718385054188,-500.0,0.00024109,3]
[329477279,1718385054198,-447.64363127,0.00024109,3]
[329477280,1718385054210,-500.0,0.00024109,3]
[329477281,1718385054223,-500.0,0.00024109,3]
[329477282,1718385054244,-500.0,0.00024109,3]
[329477283,1718385054258,-500.0,0.00024109,3]
[329477284,1718385054268,-500.0,0.00024109,3]
[329477285,1718385054281,-500.0,0.00024109,3]
[329477286,1718385054294,-500.0,0.00024109,3]
[329477287,1718385054307,-500.0,0.00024109,3]
[329477288,1718385054321,-500.0,0.00024109,3]
[329477289,1718385054333,-500.0,0.00024109,3]
[329477290,1718385054347,-222.13163142,0.00024109,3]
[329477291,1718385054361,-500.0,0.00024109,3]
[329477292,1718385054373,-500.0,0.00024109,3]
[329477293,1718385054384,-500.0,0.00024109,3]
[329477294,1718385054397,-500.0,0.00024109,3]
[329477295,1718385054412,-500.0,0.00024109,3]
[329477296,1718385054424,-500.0,0.00024109,3]
[329477297,1718385054438,-500.0,0.00024109,3]
[329477298,1718385054457,-500.0,0.00024109,3]
[329477299,1718385054469,-500.0,0.00024109,3]
[329477300,1718385054497,-150.0,0.00024109,3]
[329477301,1718385054508,-500.0,0.00024109,7]
[329477302,1718385054520,-500.0,0.00024109,3]
[329477303,1718385054539,-500.0,0.00024109,3]
[329477304,1718385054555,-500.0,0.00024109,3]
[329477305,1718385054574,-500.0,0.00024109,3]
[329477306,1718385054586,-552.77800837,0.00024109,3]
[329477307,1718385054610,-500.0,0.00024109,3]
[329477309,1718385054627,-500.0,0.00024109,3]
[329477314,1718385054659,-500.0,0.00024109,3]
[329477316,1718385054673,-500.0,0.00024109,3]
[329477318,1718385054698,-500.0,0.00024109,3]
[329477319,1718385054720,-500.0,0.00024109,3]
[329477320,1718385054733,-500.0,0.00024109,3]
[329477321,1718385054747,-500.0,0.00024109,3]
[329477322,1718385054761,-1022.18,0.00024109,3]
[329477323,1718385054774,-500.0,0.00024109,3]
[329477324,1718385054789,-500.0,0.00024109,3]
[329477325,1718385054800,-500.0,0.00024109,3]
[329477326,1718385054815,-500.0,0.00024109,3]
[329477327,1718385054827,-500.0,0.00024109,3]
[329477328,1718385054841,-500.0,0.00024109,3]
[329477329,1718385054864,-500.0,0.00024109,3]
[329477330,1718385054888,-500.0,0.00024109,3]
[329477331,1718385054902,-500.0,0.00024109,3]
[329477332,1718385054916,-500.0,0.00024109,3]
[329477333,1718385054956,-500.0,0.00024109,3]
[329477334,1718385054968,-500.0,0.00024109,3]
[329477335,1718385054980,-500.0,0.00024109,3]
[329477336,1718385054993,-500.0,0.00024109,3]
[329477337,1718385055004,-500.0,0.00024109,3]
[329477338,1718385055018,-500.0,0.00024109,3]
[329477339,1718385055029,-500.0,0.00024109,3]
[329477340,1718385055039,-903.21,0.00024109,3]
[329477341,1718385055051,-500.0,0.00024109,3]
[329477342,1718385055072,-500.0,0.00024109,3]
[329477343,1718385055085,-500.0,0.00024109,3]
[329477344,1718385055101,-500.0,0.00024109,3]
[329477345,1718385055113,-500.0,0.00024109,3]
[329477346,1718385055164,-596.5,0.00024109,3]
[329477347,1718385055188,-500.0,0.00024109,3]
[329477348,1718385055247,-500.0,0.00024109,3]
[329477349,1718385055260,-500.0,0.00024109,3]
[329477350,1718385055292,-500.0,0.00024109,3]
[329477351,1718385055357,-500.0,0.00024109,3]
[329477352,1718385055373,-500.0,0.00024109,3]
[329477353,1718385055413,-500.0,0.00024109,3]
[329477354,1718385055425,-737.58,0.00024109,3]
[329477355,1718385055444,-647.90740524,0.00024109,3]
[329477356,1718385055489,-500.0,0.00024109,3]
[329477357,1718385055500,-500.0,0.00024109,3]
[329477358,1718385055512,-626.15,0.00024109,3]
[329477359,1718385055523,-500.0,0.00024109,3]
[329477360,1718385055552,-417.54539922,0.00024109,3]
[329477361,1718385055564,-500.0,0.00024109,3]
[329477362,1718385055576,-500.0,0.00024109,3]
[329477363,1718385055588,-500.0,0.00024109,3]
[329477364,1718385055609,-500.0,0.00024109,3]
[329477365,1718385055626,-500.0,0.00024109,3]
[329477366,1718385055642,-500.0,0.00024109,3]
[329477367,1718385055660,-500.0,0.00024109,3]
[329477368,1718385055679,-500.0,0.00024109,3]
[329477369,1718385055693,-500.0,0.00024109,3]
[329477370,1718385055720,-500.0,0.00024109,3]
[329477371,1718385055741,-500.0,0.00024109,3]
[329477372,1718385055753,-500.0,0.00024109,3]
[329477373,1718385055764,-500.0,0.00024109,3]
[329477374,1718385055778,-568.62332223,0.00024109,3]
[329477375,1718385055794,-500.0,0.00024109,3]
[329477376,1718385055806,-500.0,0.00024109,3]
[329477377,1718385055818,-500.0,0.00024109,3]
[329477378,1718385055832,-500.0,0.00024109,3]
[329477379,1718385055853,-500.0,0.00024109,3]
[329477380,1718385055865,-500.0,0.00024109,3]
[329477381,1718385055879,-500.0,0.00024109,3]
[329477382,1718385055893,-500.0,0.00024109,3]
[329477383,1718385055907,-533.0,0.00024109,3]
[329477384,1718385055930,-500.0,0.00024109,3]
[329477385,1718385055942,-507.96,0.00024109,3]
[329477386,1718385055956,-690.0,0.00024109,3]
[329477387,1718385055992,-500.0,0.00024109,3]
[329477388,1718385056008,-500.0,0.00024109,3]
[329477389,1718385056029,-500.0,0.00024109,3]
[329477390,1718385056041,-500.0,0.00024109,3]
[329477391,1718385056061,-623.62,0.00024109,3]
[329477392,1718385056073,-500.0,0.00024109,3]
[329477393,1718385056084,-500.0,0.00024109,3]
[329477394,1718385056103,-500.0,0.00024109,3]
[329477395,1718385056114,-500.0,0.00024109,3]
[329477396,1718385056128,-500.0,0.00024109,3]
[329477397,1718385056145,-500.0,0.00024109,3]
[329477398,1718385056157,-700.09,0.00024109,3]
[329477399,1718385056174,-500.0,0.00024109,3]
[329477400,1718385056192,-500.0,0.00024109,3]
[329477401,1718385056206,-500.0,0.00024109,3]
[329477402,1718385056234,-500.0,0.00024109,3]
[329477403,1718385056247,-500.0,0.00024109,3]
[329477404,1718385056262,-1043.42,0.00024109,3]
[329477405,1718385056274,-500.0,0.00024109,3]
[329477406,1718385056287,-500.0,0.00024109,3]
[329477407,1718385056303,-500.0,0.00024109,3]
[329477408,1718385056320,-500.0,0.00024109,3]
[329477409,1718385056334,-500.0,0.00024109,3]
[329477410,1718385056356,-500.0,0.00024109,3]
[329477411,1718385056369,-500.0,0.00024109,3]
[329477412,1718385056396,-500.0,0.00024109,3]
[329477413,1718385056413,-500.0,0.00024109,3]
[329477414,1718385056426,-500.0,0.00024109,3]
[329477415,1718385056457,-500.0,0.00024109,3]